fUST/lending_fUST_20240214
["ID","MTS","AMOUNT","RATE_DAILY","PERIOD"]
[313983211,1707907832254,-326.45995485,0.00030413,2]
[313983212,1707907832263,-600.0,0.00030413,2]
[313983213,1707907832272,-779.32737041,0.00030413,2]
[313983214,1707907832281,-280.8280991,0.00030413,2]
[313983215,1707907832291,-250.31953608,0.00030413,2]
[313983216,1707907832300,-500.0,0.00030413,2]
[313983217,1707907832309,-290.21271965,0.00030413,2]
[313983218,1707907832318,-779.32737041,0.00030413,2]
[313983219,1707907832327,-500.0,0.00030413,2]
[313983220,1707907832336,-484.99314048,0.00030413,2]
[313983221,1707907832345,-500.0,0.00030413,2]
[313983222,1707907832354,-500.0,0.00030413,2]
[313983223,1707907832364,-779.32737041,0.00030413,2]
[313983224,1707907832373,-500.0,0.00030413,2]
[313983225,1707907832382,-779.32737041,0.00030413,2]
[313983226,1707907832392,-500.0,0.00030413,2]
[313983227,1707907832401,-500.0,0.00030413,2]
[313983228,1707907832410,-500.0,0.00030413,2]
[313983229,1707907832420,-779.32737041,0.00030413,2]
[313983230,1707907832431,-779.32737041,0.00030413,2]
[313983231,1707907832441,-502.81720405,0.00030413,2]
[313983232,1707907832450,-500.0,0.00030413,2]
[313983233,1707907832460,-779.32737041,0.00030413,2]
[313983234,1707907832469,-500.0,0.00030413,2]
[313983235,1707907832478,-779.32737041,0.00030413,2]
[313983236,1707907832488,-500.0,0.00030413,2]
[313983237,1707907832497,-779.32737041,0.00030413,2]
[313983238,1707907832507,-779.32737041,0.00030413,2]
[313983239,1707907832516,-779.32737041,0.00030413,2]
[313983240,1707907832524,-779.32737041,0.00030413,2]
[313983241,1707907832533,-779.32737041,0.00030413,2]
[313983242,1707907832542,-779.32737041,0.00030413,2]
[313983243,1707907832551,-779.32737041,0.00030413,2]
[313983244,1707907832561,-779.32737041,0.00030413,2]
[313983245,1707907832569,-779.32737041,0.00030413,2]
[313983246,1707907832581,-779.32737041,0.00030413,2]
[313983247,1707907832595,-779.32737041,0.00030413,2]
[313983248,1707907832604,-779.32737041,0.00030413,2]
[313983249,1707907832614,-779.32737041,0.00030413,2]
[313983250,1707907832625,-779.32737041,0.00030413,2]
[313983251,1707907832633,-779.32737041,0.00030413,2]
[313983252,1707907832642,-779.32737041,0.00030413,2]
[313983253,1707907832651,-779.32737041,0.00030413,2]
[313983254,1707907832661,-779.32737041,0.00030413,2]
[313983255,1707907832670,-779.32737041,0.00030413,2]
[313983256,1707907832679,-779.32737041,0.00030413,2]
[313983257,1707907832688,-779.32737041,0.00030413,2]
[313983258,1707907832697,-779.32737041,0.00030413,2]
[313983259,1707907832706,-779.32737041,0.00030413,2]
[313983260,1707907832715,-779.32737041,0.00030413,2]
[313983261,1707907832724,-779.32737041,0.00030413,2]
[313983262,1707907832733,-779.32737041,0.00030413,2]
[313983263,1707907832742,-779.32737041,0.00030413,2]
[313983264,1707907832751,-779.32737041,0.00030413,2]
[313983265,1707907832761,-779.32737041,0.00030413,2]
[313983266,1707907832770,-779.32737041,0.00030413,2]
[313983267,1707907832779,-779.32737041,0.00030413,2]
[313983268,1707907832788,-779.32737041,0.00030413,2]
[313983269,1707907832798,-779.32737041,0.00030413,2]
[313983270,1707907832807,-779.32737041,0.00030413,2]
[313983271,1707907832816,-779.32737041,0.00030413,2]
[313983272,1707907832825,-779.32737041,0.00030413,2]
[313983273,1707907832834,-779.32737041,0.00030413,2]
[313983274,1707907832843,-779.32737041,0.00030413,2]
[313983275,1707907832853,-779.32737041,0.00030413,2]
[313983276,1707907832863,-779.32737041,0.00030413,2]
[313983277,1707907832872,-779.32737041,0.00030413,2]
[313983278,1707907832881,-779.32737041,0.00030413,2]
[313983279,1707907832891,-779.32737041,0.00030413,2]
[313983280,1707907832900,-779.32737041,0.00030413,2]
[313983281,1707907832909,-779.32737041,0.00030413,2]
[313983282,1707907832919,-779.32737041,0.00030413,2]
[313983283,1707907832928,-779.32737041,0.00030413,2]
[313983284,1707907832939,-779.32737041,0.00030413,2]
[313983285,1707907832949,-779.32737041,0.00030413,2]
[313983286,1707907832958,-779.32737041,0.00030413,2]
[313983287,1707907832967,-776.54405838,0.00030413,2]
[313983288,1707907832975,-776.54405838,0.00030413,2]
[313983289,1707907832984,-630.25908702,0.00030413,2]
[313983290,1707907832998,-146.28497136,0.00030413,2]
[313983291,1707907833008,-776.54405838,0.00030413,2]
[313983292,1707907833017,-776.54405838,0.00030413,2]
[313983293,1707907833026,-776.54405838,0.00030413,2]
[313983294,1707907833035,-776.54405838,0.00030413,2]
[313983295,1707907833045,-776.54405838,0.00030413,2]
[313983296,1707907833054,-341.41202275,0.00030413,2]
[313983310,1707907838101,-2131.52562014,0.00030403,3]
[313983311,1707907838165,-1421.07437986,0.00030403,3]
[313983312,1707907838175,-250.0,0.00030414,2]
[313983313,1707907838185,-369.60666165,0.00030414,2]
[313983314,1707907838198,-500.0,0.00030414,2]
[313983315,1707907838207,-475.64756657,0.00030414,2]
[313983316,1707907838216,-500.0,0.00030414,2]
[313983317,1707907838226,-500.0,0.00030414,2]
[313983318,1707907838235,-500.0,0.00030414,2]
[313983319,1707907838245,-500.0,0.00030414,2]
[313983320,1707907838254,-500.0,0.00030414,2]
[313983321,1707907838264,-500.0,0.00030414,2]
[313983322,1707907838274,-400.0,0.00030414,2]
[313983323,1707907838283,-500.0,0.00030414,2]
[313983324,1707907838293,-500.0,0.00030414,2]
[313983325,1707907838303,-500.0,0.00030414,2]
[313983326,1707907838313,-500.0,0.00030414,2]
[313983327,1707907838323,-500.0,0.00030414,2]
[313983328,1707907838333,-456.00266077,0.00030414,2]
[313983329,1707907838342,-500.0,0.00030414,2]
[313983330,1707907838352,-500.0,0.00030414,2]
[313983331,1707907838361,-500.0,0.00030414,2]
[313983332,1707907838371,-500.0,0.00030414,2]
[313983333,1707907838380,-500.0,0.00030414,2]
[313983334,1707907838390,-50000.0,0.00030415,2]
[313983335,1707907838400,-61250.47985012,0.00030415,2]
[313983336,1707907838410,-7764.8627705,0.00030415,3]
[313983337,1707907838419,-2969.56308212,0.00030415,3]
[313983338,1707907838428,-14469.4127321,0.00030441,3]
[313983339,1707907838521,-7548.26986451,0.00030441,3]
[313983340,1707907838531,-253.79878172,0.00030711,2]
[313983341,1707907838541,-10577.72405119,0.00031,2]
[313983342,1707907838550,-200.0,0.00031097,15]
[313983343,1707907838559,-250.0,0.00031099,2]
[313983344,1707907838569,-253.79878172,0.00031108,2]
[313983345,1707907838580,-253.79878172,0.00031504,2]
[313983346,1707907838591,-253.79878172,0.000319,2]
[313983347,1707907838603,-1309.66938968,0.00031998,3]
[313983348,1707907838614,-166.36790197,0.00031998,4]
[313983349,1707907838624,-156.67316313,0.00031998,4]
[313983350,1707907838633,-392.86260099,0.00031998,4]
[313983351,1707907838643,-903.87031056,0.00031998,4]
[313983352,1707907838653,-155.19685232,0.00031998,4]
[313983353,1707907838662,-3663.41695554,0.00031998,4]
[313983354,1707907838673,-258.12096947,0.00031998,4]
[313983355,1707907838685,-742.04082584,0.00031998,4]
[313983356,1707907838696,-1117.65616639,0.00031998,2]
[313983357,1707907838705,-641.14805949,0.00031998,4]
[313983358,1707907838715,-3003.10847613,0.00031998,2]
[313983359,1707907838724,-788.15838913,0.00031998,4]
[313983360,1707907838733,-19680.49497165,0.00031999,4]
[313983361,1707907838742,-500.0,0.00031999,7]
[313983362,1707907838751,-500.0,0.00031999,7]
[313983363,1707907838760,-384.12043709,0.00031999,7]
[313983364,1707907838770,-580.12870288,0.00031999,7]
[313983365,1707907838778,-260.45863172,0.00031999,7]
[313983366,1707907838788,-290668.07427395,0.00032,15]
[313983371,1707907841258,-500.0,0.00030414,2]
[313983372,1707907841268,-500.0,0.00030414,2]
[313983373,1707907841277,-500.0,0.00030414,2]
[313983374,1707907841288,-500.0,0.00030414,2]
[313983375,1707907841297,-500.0,0.00030414,2]
[313983376,1707907841307,-500.0,0.00030414,2]
[313983377,1707907841317,-500.0,0.00030414,2]
[313983378,1707907841327,-500.0,0.00030414,2]
[313983379,1707907841336,-500.0,0.00030414,2]
[313983380,1707907841345,-500.0,0.00030414,2]
[313983381,1707907841354,-500.0,0.00030414,2]
[313983382,1707907841363,-500.0,0.00030414,2]
[313983383,1707907841372,-500.0,0.00030414,2]
[313983384,1707907841382,-500.0,0.00030414,2]
[313983385,1707907841391,-500.0,0.00030414,2]
[313983386,1707907841401,-500.0,0.00030414,2]
[313983387,1707907841411,-500.0,0.00030414,2]
[313983388,1707907841420,-500.0,0.00030414,2]
[313983389,1707907841431,-500.0,0.00030414,2]
[313983390,1707907841441,-500.0,0.00030414,2]
[313983391,1707907841450,-500.0,0.00030414,2]
[313983392,1707907841460,-500.0,0.00030414,2]
[313983393,1707907841470,-500.0,0.00030414,2]
[313983394,1707907841480,-263960.0275462,0.00032,15]
[313983395,1707907841492,-4168.1938,0.00032,15]
[313983396,1707907841504,-2511.34320311,0.00032,15]
[313983439,1707907843033,-16197.67155,0.00032,15]
[313983735,1707907846068,-1102.0,0.0003199,3]
[313984066,1707909032074,-686.19080936,0.00029813,2]
[313984069,1707909032145,-5306.85853467,0.00029813,2]
[313984071,1707909032158,-8218.54549064,0.00029813,2]
[313984085,1707909039347,-1400.22738793,0.00029813,2]
[313984087,1707909039359,-1520.54657412,0.00029813,2]
[313984088,1707909039370,-535.53633128,0.00029813,2]
[313984172,1707909041399,-2207.46813518,0.00029813,2]
[313984173,1707909041412,-2778.52342256,0.00029813,2]
[313984174,1707909041425,-2246.10331426,0.00029813,2]
[313984175,1707909041435,-196.56064318,0.000299,2]
[313984176,1707909041445,-166.666666,0.00029903,2]
[313984177,1707909041454,-598.01486214,0.0003,30]
[313984178,1707909041466,-2215.45640719,0.0003,30]
[313984179,1707909041475,-1193.35747957,0.00030436,3]
[313984180,1707909041486,-1919.83118983,0.00030436,3]
[313984181,1707909041499,-2403.64566873,0.00030436,3]
[313984505,1707909046206,-1648.4,0.00030436,3]
[313984821,1707910238382,-1528.21146683,0.00027217,2]
[313984823,1707910238394,-60.25478581,0.00027217,2]
[313984825,1707910238404,-1678.72089761,0.00027218,2]
[313984830,1707910238440,-1382.03552226,0.00027218,2]
[313984832,1707910238452,-680.56789666,0.00027218,2]
[313984900,1707910241488,-200.72656243,0.00028336,2]
[313984901,1707910241499,-169.10068,0.00028758,2]
[313984902,1707910241508,-154.93802479,0.00028798,4]
[313984903,1707910241518,-193.619591,0.00028917,2]
[313984904,1707910241528,-1589.8515652,0.00029379,2]
[313984905,1707910241539,-166.666666,0.00029558,2]
[313984906,1707910241548,-566.67729146,0.0003,2]
[313984959,1707910245404,-396.85223137,0.00026946,2]
[313984961,1707910245416,-850.98373107,0.00026946,2]
[313984963,1707910245426,-1501.215424,0.0003,2]
[313985070,1707910246547,-8509.83133573,0.0003,2]
[313985071,1707910246558,-151.0,0.0003,2]
[313985073,1707910246567,-166.666666,0.00030364,2]
[313985075,1707910246577,-326.41624496,0.00030435,4]
[313985077,1707910246586,-5495.04542002,0.00030435,2]
[313985078,1707910246595,-813.89391296,0.00030436,3]
[313985080,1707910246605,-9296.51705291,0.00030436,14]
[313985081,1707910246614,-3194.77946561,0.00030483,3]
[313985082,1707910246623,-24125.07460312,0.00030534,3]
[313985083,1707910246635,-4046.40118919,0.00030534,3]
[313985084,1707910246644,-664.59881081,0.00030561,3]
[313985085,1707910246655,-184.58154895,0.00030561,3]
[313985087,1707910246664,-166.666666,0.0003117,2]
[313985089,1707910246674,-933.94657534,0.00031173,7]
[313985224,1707911084237,10000.0,0.000203,2]
[313985291,1707911432509,-163.26227374,0.00025786,2]
[313985293,1707911432519,-121.92169752,0.00025787,2]
[313985351,1707911438675,-33.01632727,0.00025787,2]
[313985352,1707911438685,-1811.1813144,0.00025794,2]
[313985353,1707911438695,-166.25637176,0.00025795,2]
[313985354,1707911438704,-242.50306713,0.00025818,2]
[313985355,1707911438713,-166.666666,0.00028427,2]
[313985356,1707911438722,-276.43438948,0.00028434,2]
[313985357,1707911438731,-590.25805235,0.00028523,2]
[313985844,1707911446641,-3081.80967575,0.00028523,2]
[313985845,1707911446651,-223.529861,0.00029178,2]
[313985847,1707911446661,-166.666666,0.00029202,2]
[313985849,1707911446670,-166.666666,0.00029977,2]
[313985850,1707911446679,-958.20277354,0.0003058,2]
[313985852,1707911446688,-2519.72471087,0.0003061,2]
[313985853,1707911446696,-5000.0,0.0003061,7]
[313985855,1707911446705,-1346.67697821,0.00030612,2]
[313985857,1707911446714,-166.666666,0.00030752,2]
[313985858,1707911446724,-200.0,0.00030858,2]
[313985860,1707911446733,-4667.0,0.00031163,3]
[313985862,1707911446742,-3889.17,0.00031163,3]
[313985863,1707911446751,-250.0,0.00031172,2]
[313985865,1707911446760,-500.0,0.00031172,2]
[313985866,1707911446769,-500.0,0.00031172,2]
[313985868,1707911446778,-500.0,0.00031172,2]
[313985870,1707911446787,-500.0,0.00031172,2]
[313985871,1707911446796,-500.0,0.00031172,2]
[313985873,1707911446806,-292.93810045,0.00031172,2]
[313985875,1707911446815,-500.0,0.00031172,2]
[313985876,1707911446824,-500.0,0.00031172,2]
[313985878,1707911446833,-500.0,0.00031172,2]
[313985879,1707911446842,-500.0,0.00031172,2]
[313985881,1707911446852,-500.0,0.00031172,2]
[313985883,1707911446861,-500.0,0.00031172,2]
[313985884,1707911446871,-500.0,0.00031172,2]
[313985886,1707911446880,-445.60026608,0.00031172,2]
[313985888,1707911446889,-500.0,0.00031172,2]
[313985889,1707911446899,-66.05342466,0.00031173,7]
[313985891,1707911446908,-404.36710239,0.00031173,4]
[313985893,1707911446917,-197751.03972728,0.00031173,14]
[313986124,1707912633281,-182.31067444,0.00025915,2]
[313986126,1707912633290,-148.8148955,0.00028797,2]
[313986183,1707912637866,-1662.3664189,0.00028797,2]
[313986187,1707912637876,-273.0,0.00028797,2]
[313986188,1707912637885,-331.12556994,0.00028798,2]
[313986191,1707912637895,-166.666666,0.00028967,2]
[313986193,1707912637906,-184.28959299,0.00029073,2]
[313986195,1707912637917,-703.0475847,0.00029382,2]
[313986250,1707912641048,-6248.7872951,0.00029382,2]
[313986252,1707912641059,-166.666666,0.00029757,2]
[313986254,1707912641069,-166.666666,0.00030546,2]
[313986256,1707912641080,-7030.13689518,0.00030631,2]
[313986258,1707912641090,-3154.0883624,0.00030681,7]
[313986358,1707912644310,-690.32063281,0.00030681,7]
[313986361,1707912644340,-1155.59100479,0.00030681,7]
[313986362,1707912644348,-620.00354047,0.00030851,2]
[313986364,1707912644357,-1105.13476266,0.00031163,3]
[313986493,1707912646509,-812.04125896,0.00031163,3]
[313986494,1707912646521,-1323.79397838,0.00031163,3]
[313986495,1707912646531,-2700.81,0.00031163,3]
[313986496,1707912646540,-326.3620937,0.00031172,4]
[313986497,1707912646550,-77844.77993548,0.00031173,14]
[313986498,1707912646559,-225.1182156,0.00031332,2]
[313986499,1707912646568,-166.666666,0.00031336,2]
[313986500,1707912646577,-225.11821559,0.00031474,2]
[313986501,1707912646587,-225.11821559,0.00031616,2]
[313986502,1707912646597,-167.53449481,0.00031677,7]
[313986503,1707912646606,-500.0,0.00031677,7]
[313986505,1707912646615,-500.0,0.00031677,7]
[313986506,1707912646624,-500.0,0.00031677,7]
[313986507,1707912646633,-500.0,0.00031677,7]
[313986508,1707912646643,-500.0,0.00031677,7]
[313986509,1707912646651,-500.0,0.00031677,7]
[313986510,1707912646661,-500.0,0.00031677,7]
[313986511,1707912646670,-500.0,0.00031677,7]
[313986512,1707912646679,-545.95465997,0.00031677,7]
[313986513,1707912646688,-23215.29068855,0.00031678,4]
[313986514,1707912646698,-225.11821559,0.00031758,2]
[313986515,1707912646707,-2839.72660945,0.000318,28]
[313986517,1707912646716,-9152.23026385,0.00031898,2]
[313986518,1707912646726,-225.11821559,0.000319,2]
[313986520,1707912646737,-444.37523478,0.000319,2]
[313986522,1707912646747,-6305.16520436,0.00031998,4]
[313986524,1707912646756,-641.14805949,0.00031998,4]
[313986525,1707912646766,-788.15838913,0.00031998,4]
[313986527,1707912646775,-1117.65616639,0.00031998,2]
[313986528,1707912646785,-903.87031056,0.00031998,4]
[313986529,1707912646794,-155.19685232,0.00031998,4]
[313986531,1707912646803,-156.67316313,0.00031998,4]
[313986532,1707912646812,-3663.41695554,0.00031998,4]
[313986534,1707912646821,-166.36790197,0.00031998,4]
[313986535,1707912646830,-392.86260099,0.00031998,4]
[313986537,1707912646841,-258.12096947,0.00031998,4]
[313986539,1707912646850,-742.04082584,0.00031998,4]
[313986540,1707912646859,-1309.66938968,0.00031998,3]
[313986541,1707912646868,-360.81623429,0.00031998,4]
[313986542,1707912646877,-419.74874448,0.00031998,4]
[313986543,1707912646886,-166.74522198,0.00031998,7]
[313986544,1707912646895,-1479.2887323,0.00031998,4]
[313986545,1707912646904,-151.0,0.00031998,2]
[313986546,1707912646913,-200.235478,0.00031998,2]
[313986547,1707912646926,-151.0,0.00031998,2]
[313986548,1707912646935,-153.125419,0.00031998,2]
[313986549,1707912646945,-153.125419,0.00031998,2]
[313986550,1707912646954,-151.0,0.00031998,2]
[313986551,1707912646965,-151.0,0.00031998,2]
[313986552,1707912646974,-151.0,0.00031998,2]
[313986553,1707912646984,-962.36788112,0.00031999,4]
[313986554,1707912646993,-19680.49497165,0.00031999,4]
[313986555,1707912647004,-151.0,0.00031999,2]
[313986556,1707912647013,-151.0,0.00031999,2]
[313986557,1707912647023,-153.125419,0.00031999,2]
[313986558,1707912647032,-153.125419,0.00031999,2]
[313986559,1707912647041,-151.0,0.00031999,2]
[313986560,1707912647051,-206.486958,0.00031999,2]
[313986561,1707912647059,-151.0,0.00031999,2]
[313986562,1707912647069,-151.0,0.00031999,2]
[313986563,1707912647079,-151.0,0.00031999,2]
[313986564,1707912647089,-151.0,0.00031999,2]
[313986565,1707912647098,-250.0,0.00031999,2]
[313986566,1707912647107,-151.0,0.00031999,2]
[313986567,1707912647117,-500.0,0.00031999,7]
[313986568,1707912647126,-500.0,0.00031999,7]
[313986569,1707912647135,-260.45863172,0.00031999,7]
[313986570,1707912647145,-580.12870288,0.00031999,7]
[313986571,1707912647154,-384.12043709,0.00031999,7]
[313986572,1707912647163,-163113.58117025,0.00032,15]
[313986661,1707913833295,-467.09929999,0.00028798,2]
[313986662,1707913833307,-514.39260097,0.00028798,2]
[313986663,1707913833317,-166.666666,0.00029678,2]
[313986664,1707913833327,-217.93751612,0.000299,2]
[313986665,1707913833336,-166.666666,0.00030487,2]
[313986666,1707913833345,-954.16423242,0.00030681,7]
[313986667,1707913833358,-940.05,0.00030681,7]
[313986842,1707913841098,-2585.35,0.00030681,7]
[313986843,1707913841110,-520.43576758,0.00030681,7]
[313986844,1707913841119,-1237.55664868,0.00030784,2]
[313986973,1707914477744,-679.26923246,0.0002769,2]
[313986974,1707914477783,-154.98450155,0.0002769,2]
[313986975,1707914477818,-2061.74626599,0.00027691,2]
[313987187,1707915038299,-154.9690062,0.0002765,2]
[313987188,1707915038308,-883.50279668,0.0002765,2]
[313987191,1707915038322,-1840.1241374,0.0002765,2]
[313987193,1707915038330,-2825.42703389,0.00027651,2]
[313987195,1707915038339,-821.70211693,0.00027652,2]
[313987197,1707915038348,-524.21369774,0.00027653,2]
[313987199,1707915038357,-154.9690062,0.00027653,2]
[313987201,1707915038368,-1114.9970642,0.00027704,2]
[313987203,1707915038377,-166.666666,0.00027956,2]
[313987205,1707915038386,-281.89692144,0.00028684,2]
[313987206,1707915038394,-166.666666,0.00028718,2]
[313987208,1707915038404,-166.666666,0.0002948,2]
[313987211,1707915038414,-166.666666,0.00030242,2]
[313987212,1707915038423,-306.0,0.00030411,2]
[313987214,1707915038433,-306.0,0.00030411,2]
[313987217,1707915038443,-153.0,0.00030411,2]
[313987218,1707915038451,-153.0,0.00030411,2]
[313987219,1707915038461,-306.0,0.00030411,2]
[313987220,1707915038470,-400.2930112,0.00030411,2]
[313987221,1707915038479,-153.0,0.00030411,2]
[313987222,1707915038488,-306.0,0.00030411,2]
[313987223,1707915038498,-200.0,0.00030438,15]
[313987224,1707915038507,-288.42165902,0.00030626,4]
[313987225,1707915038518,-218.06858201,0.00030678,2]
[313987227,1707915038527,-502.43786657,0.00030678,2]
[313987229,1707915038537,-218.068582,0.00030679,2]
[313987231,1707915038546,-44444.0,0.00030683,3]
[313987233,1707915038556,-6486.2,0.00030768,3]
[313987234,1707915038564,-500.0,0.00030777,2]
[313987236,1707915038573,-500.0,0.00030777,2]
[313987238,1707915038582,-500.0,0.00030777,2]
[313987240,1707915038591,-500.0,0.00030777,2]
[313987242,1707915038601,-500.0,0.00030777,2]
[313987244,1707915038614,-500.0,0.00030777,2]
[313987246,1707915038624,-500.0,0.00030777,2]
[313987248,1707915038633,-500.0,0.00030777,2]
[313987250,1707915038643,-500.0,0.00030777,2]
[313987252,1707915038652,-500.0,0.00030777,2]
[313987254,1707915038662,-500.0,0.00030777,2]
[313987256,1707915038671,-500.0,0.00030777,2]
[313987258,1707915038680,-500.0,0.00030777,2]
[313987259,1707915038689,-500.0,0.00030777,2]
[313987260,1707915038699,-500.0,0.00030777,2]
[313987261,1707915038708,-500.0,0.00030777,2]
[313987262,1707915038717,-213.732327,0.00030777,2]
[313987263,1707915038726,-500.0,0.00030777,2]
[313987264,1707915038735,-500.0,0.00030777,2]
[313987265,1707915038744,-267.99214989,0.00030777,2]
[313987266,1707915038753,-500.0,0.00030777,2]
[313987267,1707915038762,-500.0,0.00030777,2]
[313987268,1707915038772,-500.0,0.00030777,2]
[313987269,1707915038781,-500.0,0.00030777,2]
[313987270,1707915038790,-500.0,0.00030777,2]
[313987271,1707915038804,-181.2165065,0.00030777,2]
[313987273,1707915038813,-500.0,0.00030777,2]
[313987274,1707915038822,-500.0,0.00030777,2]
[313987275,1707915038831,-500.0,0.00030777,2]
[313987276,1707915038840,-500.0,0.00030777,2]
[313987277,1707915038849,-373.16740626,0.00030777,2]
[313987278,1707915038858,-500.0,0.00030777,2]
[313987279,1707915038868,-500.0,0.00030777,2]
[313987280,1707915038876,-500.0,0.00030777,2]
[313987281,1707915038887,-500.0,0.00030777,2]
[313987282,1707915038897,-319.94319538,0.00030777,2]
[313987283,1707915038906,-500.0,0.00030777,2]
[313987284,1707915038916,-500.0,0.00030777,2]
[313987285,1707915038925,-578.18178938,0.00030777,2]
[313987286,1707915038935,-500.0,0.00030777,2]
[313987287,1707915038944,-500.0,0.00030777,2]
[313987288,1707915038954,-500.0,0.00030777,2]
[313987289,1707915038964,-500.0,0.00030777,2]
[313987290,1707915038973,-500.0,0.00030777,2]
[313987291,1707915038982,-500.0,0.00030777,2]
[313987292,1707915038992,-200.0,0.00030777,2]
[313987293,1707915039001,-500.0,0.00030777,2]
[313987294,1707915039010,-500.0,0.00030777,2]
[313987295,1707915039020,-500.0,0.00030777,2]
[313987296,1707915039029,-500.0,0.00030777,2]
[313987297,1707915039039,-350.0,0.00030777,2]
[313987298,1707915039048,-500.0,0.00030777,2]
[313987299,1707915039057,-500.0,0.00030777,2]
[313987300,1707915039066,-229.70721342,0.00030777,2]
[313987301,1707915039075,-500.0,0.00030777,2]
[313987302,1707915039084,-500.0,0.00030777,2]
[313987303,1707915039094,-500.0,0.00030777,2]
[313987304,1707915039103,-500.0,0.00030777,2]
[313987305,1707915039112,-500.0,0.00030777,2]
[313987306,1707915039122,-500.0,0.00030777,2]
[313987307,1707915039133,-500.0,0.00030777,2]
[313987308,1707915039142,-500.0,0.00030777,2]
[313987309,1707915039151,-500.0,0.00030777,2]
[313987310,1707915039160,-500.0,0.00030777,2]
[313987311,1707915039170,-500.0,0.00030777,2]
[313987312,1707915039179,-500.0,0.00030777,2]
[313987313,1707915039188,-500.0,0.00030777,2]
[313987314,1707915039197,-500.0,0.00030777,2]
[313987315,1707915039206,-500.0,0.00030777,2]
[313987316,1707915039216,-500.0,0.00030777,2]
[313987317,1707915039225,-500.0,0.00030777,2]
[313987318,1707915039235,-500.0,0.00030777,2]
[313987319,1707915039245,-500.0,0.00030777,2]
[313987320,1707915039254,-500.0,0.00030777,2]
[313987321,1707915039264,-500.0,0.00030777,2]
[313987322,1707915039275,-500.0,0.00030777,2]
[313987323,1707915039285,-500.0,0.00030777,2]
[313987324,1707915039294,-500.0,0.00030777,2]
[313987325,1707915039304,-500.0,0.00030777,2]
[313987326,1707915039313,-500.0,0.00030777,2]
[313987327,1707915039325,-500.0,0.00030777,2]
[313987328,1707915039335,-500.0,0.00030777,2]
[313987329,1707915039410,-500.0,0.00030777,2]
[313987330,1707915039432,-500.0,0.00030777,2]
[313987331,1707915039442,-500.0,0.00030777,2]
[313987332,1707915039452,-500.0,0.00030777,2]
[313987333,1707915039461,-500.0,0.00030777,2]
[313987334,1707915039471,-500.0,0.00030777,2]
[313987335,1707915039481,-500.0,0.00030777,2]
[313987336,1707915039490,-299.89170584,0.00030778,4]
[313987337,1707915039500,-2897.835876,0.00030779,2]
[313987338,1707915039510,-2897.835876,0.00030779,2]
[313987339,1707915039520,-2897.835876,0.00030779,2]
[313987340,1707915039530,-2897.835876,0.00030779,2]
[313987341,1707915039539,-2897.835876,0.00030779,2]
[313987342,1707915039549,-2897.835876,0.00030779,2]
[313987343,1707915039559,-2897.835876,0.00030779,2]
[313987344,1707915039568,-2897.835876,0.00030779,2]
[313987345,1707915039579,-2897.835876,0.00030779,2]
[313987346,1707915039589,-2897.835876,0.00030779,2]
[313987347,1707915039598,-2897.835876,0.00030779,2]
[313987348,1707915039609,-2897.835876,0.00030779,2]
[313987349,1707915039619,-1358.296155,0.00030779,2]
[313987350,1707915039629,-1358.296155,0.00030779,2]
[313987351,1707915039638,-1358.296155,0.00030779,2]
[313987352,1707915039647,-1358.296155,0.00030779,2]
[313987353,1707915039657,-1358.296155,0.00030779,2]
[313987354,1707915039666,-1358.296155,0.00030779,2]
[313987355,1707915039675,-1358.296155,0.00030779,2]
[313987356,1707915039685,-1358.296155,0.00030779,2]
[313987357,1707915039695,-1358.296155,0.00030779,2]
[313987358,1707915039704,-1358.296155,0.00030779,2]
[313987359,1707915039713,-1358.296155,0.00030779,2]
[313987360,1707915039722,-1358.296155,0.00030779,2]